[Event "Vastgota Open 2022"]
[Site "Skara stadshotell, Jarnvagsgatan 5, Skara, Sweden"]
[Date "2022.10.29"]
[Round "1.1"]
[White "Holmgren, Peter"]
[Black "Blomqvist, Erik"]
[Result "0-1"]
[TimeControl "30 minutes + 10 seconds per move from move one."]
[BlackTitle "GM"]
[WhiteFideId "1713906"]
[BlackFideId "1709437"]
[WhiteElo "1802"]
[BlackElo "2490"]

1. d4 {[%clk 00:30:15]} {[%emt 00:00:05]} Nf6 {[%clk 00:30:12]} {[%emt
00:00:08]} 2. Nf3 {[%clk 00:30:13]} {[%emt 00:00:12]} d5 {[%clk 00:30:18]}
{[%emt 00:00:04]} 3. e3 {[%clk 00:30:04]} {[%emt 00:00:19]} c5 {[%clk
00:30:06]} {[%emt 00:00:23]} 4. c4 {[%clk 00:29:05]} {[%emt 00:01:09]} cxd4
{[%clk 00:30:02]} {[%emt 00:01:48]} 5. exd4 {[%clk 00:29:04]} g6 {[%clk
00:30:07]} 6. Nc3 {[%clk 00:28:31]} Bg7 {[%clk 00:30:14]} 7. c5 {[%clk
00:26:20]} {[%emt 00:01:48]} O-O {[%clk 00:30:19]} {[%emt 00:00:05]} 8. Be2
{[%clk 00:25:51]} {[%emt 00:00:38]} b6 {[%clk 00:30:04]} {[%emt 00:00:26]} 9.
b4 {[%clk 00:23:40]} {[%emt 00:02:21]} a5 {[%clk 00:29:54]} {[%emt 00:00:20]}
10. Ba3 {[%clk 00:23:31]} {[%emt 00:00:20]} axb4 {[%clk 00:29:45]} {[%emt
00:00:18]} 11. Bxb4 {[%clk 00:23:40]} {[%emt 00:00:01]} Nc6 {[%clk 00:29:13]}
{[%emt 00:00:42]} 12. a3 {[%clk 00:23:40]} {[%emt 00:00:09]} Ne4 {[%clk
00:28:38]} {[%emt 00:00:44]} 13. Rc1 {[%clk 00:23:11]} {[%emt 00:00:39]} bxc5
{[%clk 00:26:03]} {[%emt 00:02:46]} 14. dxc5 {[%clk 00:22:46]} {[%emt
00:00:35]} Nxb4 {[%clk 00:25:55]} {[%emt 00:00:18]} 15. Nxe4 {[%clk 00:21:30]}
{[%emt 00:01:26]} dxe4 {[%clk 00:26:01]} {[%emt 00:00:04]} 16. axb4 {[%clk
00:21:14]} {[%emt 00:00:27]} exf3 {[%clk 00:25:47]} {[%emt 00:00:23]} 17. Bxf3
{[%clk 00:21:10]} {[%emt 00:00:12]} Qxd1+ {[%clk 00:25:29]} {[%emt 00:00:30]}
18. Bxd1 {[%clk 00:20:37]} {[%emt 00:00:43]} Rb8 {[%clk 00:25:26]} {[%emt
00:00:13]} 19. Rc4 {[%clk 00:19:14]} {[%emt 00:01:33]} Ba6 {[%clk 00:25:21]}
{[%emt 00:00:13]} 20. Re4 {[%clk 00:18:49]} {[%emt 00:00:37]} Bc3# {[%clk
00:25:26]} {[%emt 00:00:05]} 0-1

[Event "Vastgota Open 2022"]
[Site "Skara stadshotell, Jarnvagsgatan 5, Skara, Sweden"]
[Date "2022.10.29"]
[Round "1.2"]
[White "Cramling, Pia"]
[Black "Westerlind, Sture"]
[Result "1-0"]
[TimeControl "30 minutes + 10 seconds per move from move one."]
[WhiteTitle "GM"]
[WhiteFideId "1700030"]
[BlackFideId "1745654"]
[WhiteElo "2421"]
[BlackElo "1783"]

1. d4 {[%clk 00:30:10]} {[%emt 00:53:50]} d5 {[%clk 00:30:14]} {[%emt
00:00:12]} 2. c4 {[%clk 00:30:25]} {[%emt 00:00:03]} e6 {[%clk 00:30:08]}
{[%emt 00:00:16]} 3. Nc3 {[%clk 00:30:29]} {[%emt 00:00:07]} Nf6 {[%clk
00:29:55]} {[%emt 00:00:23]} 4. cxd5 {[%clk 00:30:25]} {[%emt 00:00:14]} exd5
{[%clk 00:29:55]} {[%emt 00:00:10]} 5. Bg5 {[%clk 00:30:30]} {[%emt 00:00:05]}
c6 {[%clk 00:29:54]} {[%emt 00:00:10]} 6. e3 {[%clk 00:30:31]} {[%emt
00:00:10]} Be7 {[%clk 00:26:57]} {[%emt 00:03:07]} 7. Bd3 {[%clk 00:30:15]}
{[%emt 00:00:26]} h6 {[%clk 00:25:54]} {[%emt 00:01:13]} 8. Bf4 {[%clk
00:30:10]} {[%emt 00:00:15]} O-O {[%clk 00:24:56]} {[%emt 00:01:09]} 9. h3
{[%clk 00:29:48]} {[%emt 00:00:31]} Bd6 {[%clk 00:24:20]} {[%emt 00:00:46]} 10.
Nge2 {[%clk 00:29:49]} {[%emt 00:00:09]} Re8 {[%clk 00:24:00]} {[%emt
00:00:32]} 11. Qc2 {[%clk 00:29:53]} {[%emt 00:00:04]} Nh5 {[%clk 00:23:34]}
{[%emt 00:00:36]} 12. Bxd6 {[%clk 00:29:26]} {[%emt 00:00:37]} Qxd6 {[%clk
00:23:31]} {[%emt 00:00:13]} 13. O-O-O {[%clk 00:29:17]} {[%emt 00:00:19]} b5
{[%clk 00:22:34]} {[%emt 00:01:07]} 14. g4 {[%clk 00:29:08]} {[%emt 00:00:18]}
Nf6 {[%clk 00:22:27]} {[%emt 00:00:18]} 15. Ng3 {[%clk 00:29:15]} {[%emt
00:00:04]} Na6 {[%clk 00:22:10]} {[%emt 00:00:27]} 16. Qd2 {[%clk 00:29:06]}
{[%emt 00:00:18]} b4 {[%clk 00:19:50]} {[%emt 00:02:30]} 17. Na4 {[%clk
00:28:56]} {[%emt 00:00:21]} Rb8 {[%clk 00:18:57]} {[%emt 00:01:02]} 18. Kb1
{[%clk 00:28:19]} {[%emt 00:00:47]} Ne4 {[%clk 00:18:18]} {[%emt 00:00:50]} 19.
Nxe4 {[%clk 00:26:52]} {[%emt 00:01:36]} dxe4 {[%clk 00:18:20]} {[%emt
00:00:09]} 20. Bxa6 {[%clk 00:25:11]} {[%emt 00:01:50]} Bxa6 {[%clk 00:18:13]}
{[%emt 00:00:17]} 21. Nc5 {[%clk 00:23:06]} {[%emt 00:02:15]} Bc4 {[%clk
00:17:45]} {[%emt 00:00:38]} 22. Rc1 {[%clk 00:22:50]} {[%emt 00:00:26]} Bd5
{[%clk 00:17:01]} {[%emt 00:00:55]} 23. Qe2 {[%clk 00:22:47]} {[%emt 00:00:12]}
a5 {[%clk 00:16:31]} {[%emt 00:00:41]} 24. h4 {[%clk 00:22:41]} {[%emt
00:00:15]} Qg6 {[%clk 00:10:57]} {[%emt 00:05:44]} 25. Rhg1 {[%clk 00:22:16]}
{[%emt 00:00:35]} Re7 {[%clk 00:05:57]} {[%emt 00:05:11]} 26. Ka1 {[%clk
00:21:53]} {[%emt 00:00:32]} Ra7 {[%clk 00:04:50]} {[%emt 00:01:17]} 27. b3
{[%clk 00:19:31]} {[%emt 00:02:33]} Rb5 {[%clk 00:02:28]} {[%emt 00:02:31]} 28.
Qc2 {[%clk 00:17:54]} {[%emt 00:01:47]} Qd6 {[%clk 00:00:50]} {[%emt 00:01:48]}
29. Nxe4 {[%clk 00:16:26]} {[%emt 00:01:38]} Bxe4 {[%clk 00:00:43]} {[%emt
00:00:18]} 30. Qxe4 {[%clk 00:16:34]} {[%emt 00:00:01]} a4 {[%clk 00:00:40]}
{[%emt 00:00:14]} 31. Rxc6 {[%clk 00:15:57]} {[%emt 00:00:46]} Qf8 {[%clk
00:00:46]} {[%emt 00:00:04]} 32. Rgc1 {[%clk 00:12:10]} {[%emt 00:03:56]} Rb8
{[%clk 00:00:55]} {[%emt 00:00:02]} 33. Rc7 {[%clk 00:10:43]} {[%emt 00:01:36]}
Raa8 {[%clk 00:00:33]} {[%emt 00:00:34]} 34. Kb2 {[%clk 00:10:23]} {[%emt
00:00:30]} axb3 {[%clk 00:00:38]} {[%emt 00:00:05]} 35. axb3 {[%clk 00:10:29]}
{[%emt 00:00:04]} Qd6 {[%clk 00:00:28]} {[%emt 00:00:20]} 36. Qf5 {[%clk
00:06:36]} 1-0

[Event "Vastgota Open 2022"]
[Site "Skara stadshotell, Jarnvagsgatan 5, Skara, Sweden"]
[Date "2022.10.29"]
[Round "1.3"]
[White "Eriksson, Magnus"]
[Black "Bellon Lopez, Juan Manuel"]
[Result "0-1"]
[TimeControl "30 minutes + 10 seconds per move from move one."]
[BlackTitle "GM"]
[WhiteFideId "1709941"]
[BlackFideId "2200031"]
[WhiteElo "1766"]
[BlackElo "2347"]

1. Nf3 {[%clk 00:30:17]} {[%emt 00:00:03]} g6 {[%clk 00:30:17]} {[%emt
00:00:04]} 2. g3 {[%clk 00:30:24]} {[%emt 00:00:03]} Bg7 {[%clk 00:30:25]}
{[%emt 00:00:02]} 3. Bg2 {[%clk 00:30:32]} {[%emt 00:00:03]} e6 {[%clk
00:30:28]} {[%emt 00:00:05]} 4. e4 {[%clk 00:29:24]} {[%emt 00:01:18]} c5
{[%clk 00:30:07]} {[%emt 00:00:31]} 5. O-O {[%clk 00:29:09]} {[%emt 00:00:26]}
Nc6 {[%clk 00:28:56]} {[%emt 00:01:42]} 6. Nc3 {[%clk 00:27:46]} {[%emt
00:01:13]} Nge7 {[%clk 00:28:35]} {[%emt 00:00:30]} 7. d3 {[%clk 00:27:24]}
{[%emt 00:00:32]} O-O {[%clk 00:28:14]} {[%emt 00:00:31]} 8. Be3 {[%clk
00:22:00]} {[%emt 00:05:34]} Nd4 {[%clk 00:28:13]} {[%emt 00:00:12]} 9. Rb1
{[%clk 00:21:51]} {[%emt 00:00:19]} d6 {[%clk 00:25:14]} {[%emt 00:03:08]} 10.
Ne2 {[%clk 00:21:46]} {[%emt 00:00:15]} Nec6 {[%clk 00:23:54]} {[%emt
00:01:29]} 11. c3 {[%clk 00:19:52]} {[%emt 00:02:05]} Nxf3+ {[%clk 00:24:02]}
{[%emt 00:00:02]} 12. Bxf3 {[%clk 00:20:00]} {[%emt 00:00:03]} b6 {[%clk
00:23:19]} {[%emt 00:00:53]} 13. Bg2 {[%clk 00:19:02]} {[%emt 00:01:07]} Bb7
{[%clk 00:21:34]} {[%emt 00:01:55]} 14. d4 {[%clk 00:16:21]} {[%emt 00:02:51]}
Rc8 {[%clk 00:21:16]} {[%emt 00:00:28]} 15. d5 {[%clk 00:15:47]} {[%emt
00:00:44]} exd5 {[%clk 00:20:37]} {[%emt 00:00:50]} 16. exd5 {[%clk 00:15:54]}
{[%emt 00:00:03]} Ne5 {[%clk 00:20:25]} {[%emt 00:00:21]} 17. h3 {[%clk
00:11:46]} {[%emt 00:04:18]} Re8 {[%clk 00:18:36]} {[%emt 00:01:59]} 18. b3
{[%clk 00:06:52]} {[%emt 00:05:05]} Ba6 {[%clk 00:15:27]} {[%emt 00:03:19]} 19.
Qd2 {[%clk 00:06:44]} {[%emt 00:00:17]} Rc7 {[%clk 00:12:53]} {[%emt 00:02:43]}
20. Rfe1 {[%clk 00:06:50]} {[%emt 00:00:04]} Nd3 {[%clk 00:11:23]} {[%emt
00:01:41]} 21. Rf1 {[%clk 00:06:53]} {[%emt 00:00:07]} Rce7 {[%clk 00:09:52]}
{[%emt 00:01:42]} 22. c4 {[%clk 00:06:38]} {[%emt 00:00:25]} Nxf2 {[%clk
00:08:23]} {[%emt 00:01:39]} 0-1

[Event "Vastgota Open 2022"]
[Site "Skara stadshotell, Jarnvagsgatan 5, Skara, Sweden"]
[Date "2022.10.29"]
[Round "1.4"]
[White "Golubka, Petro"]
[Black "Olsson, Stefan"]
[Result "1-0"]
[TimeControl "30 minutes + 10 seconds per move from move one."]
[WhiteTitle "GM"]
[WhiteFideId "14114224"]
[BlackFideId "1737325"]
[WhiteElo "2335"]
[BlackElo "1760"]

1. e4 {[%clk 00:30:03]} {[%emt 00:00:16]} c6 {[%clk 00:30:16]} {[%emt
00:00:04]} 2. d4 {[%clk 00:29:30]} {[%emt 00:00:43]} d5 {[%clk 00:30:22]}
{[%emt 00:00:03]} 3. f3 {[%clk 00:29:37]} {[%emt 00:00:04]} Nf6 {[%clk
00:27:55]} {[%emt 00:02:39]} 4. e5 {[%clk 00:29:30]} {[%emt 00:00:15]} Ng8
{[%clk 00:27:56]} {[%emt 00:00:09]} 5. c4 {[%clk 00:28:20]} {[%emt 00:01:21]}
e6 {[%clk 00:25:20]} {[%emt 00:02:45]} 6. Nc3 {[%clk 00:27:59]} {[%emt
00:00:31]} Ne7 {[%clk 00:24:31]} {[%emt 00:00:59]} 7. f4 {[%clk 00:27:40]}
{[%emt 00:00:29]} h5 {[%clk 00:22:48]} {[%emt 00:01:53]} 8. Nf3 {[%clk
00:27:29]} {[%emt 00:00:21]} Nf5 {[%clk 00:18:07]} {[%emt 00:04:52]} 9. Bd3
{[%clk 00:27:11]} {[%emt 00:00:28]} g6 {[%clk 00:18:14]} {[%emt 00:00:02]} 10.
g3 {[%clk 00:25:56]} {[%emt 00:01:26]} Na6 {[%clk 00:17:56]} {[%emt 00:00:28]}
11. a3 {[%clk 00:23:41]} {[%emt 00:02:25]} Nc7 {[%clk 00:17:08]} {[%emt
00:00:58]} 12. cxd5 {[%clk 00:21:51]} {[%emt 00:02:00]} cxd5 {[%clk 00:14:46]}
{[%emt 00:02:32]} 13. Rg1 {[%clk 00:20:49]} {[%emt 00:01:11]} a6 {[%clk
00:13:20]} {[%emt 00:01:37]} 14. h3 {[%clk 00:20:46]} {[%emt 00:00:13]} Bd7
{[%clk 00:07:24]} {[%emt 00:06:06]} 15. g4 {[%clk 00:20:28]} {[%emt 00:00:27]}
hxg4 {[%clk 00:07:22]} {[%emt 00:00:12]} 16. hxg4 {[%clk 00:20:35]} {[%emt
00:00:04]} Ng7 {[%clk 00:06:12]} {[%emt 00:01:20]} 17. Be3 {[%clk 00:20:26]}
{[%emt 00:00:20]} Be7 {[%clk 00:05:51]} {[%emt 00:00:31]} 18. Kf2 {[%clk
00:20:19]} {[%emt 00:00:16]} Rc8 {[%clk 00:04:05]} {[%emt 00:01:57]} 19. Kg2
{[%clk 00:19:59]} {[%emt 00:00:28]} Kf8 {[%clk 00:03:59]} {[%emt 00:00:17]} 20.
Rh1 {[%clk 00:19:51]} {[%emt 00:00:18]} Kg8 {[%clk 00:03:40]} {[%emt 00:00:28]}
21. Rxh8+ {[%clk 00:19:46]} {[%emt 00:00:15]} Kxh8 {[%clk 00:03:49]} {[%emt
00:00:02]} 22. Qh1+ {[%clk 00:19:33]} {[%emt 00:00:21]} Kg8 {[%clk 00:03:58]}
23. Qh6 {[%clk 00:19:12]} {[%emt 00:00:28]} Nf5 {[%clk 00:01:06]} {[%emt
00:03:08]} 24. gxf5 {[%clk 00:19:06]} {[%emt 00:00:17]} Bf8 {[%clk 00:00:51]}
{[%emt 00:00:25]} 25. Qg5 {[%clk 00:19:06]} {[%emt 00:00:08]} Be7 {[%clk
00:00:58]} {[%emt 00:00:04]} 26. f6 {[%clk 00:19:12]} {[%emt 00:00:05]} 1-0

[Event "Vastgota Open 2022"]
[Site "Skara stadshotell, Jarnvagsgatan 5, Skara, Sweden"]
[Date "2022.10.29"]
[Round "1.5"]
[White "Andersson, Christer"]
[Black "Ronneland, Daniel"]
[Result "0-1"]
[TimeControl "30 minutes + 10 seconds per move from move one."]
[WhiteFideId "1734857"]
[BlackFideId "1702130"]
[WhiteElo "1749"]
[BlackElo "2206"]

1. d4 {[%clk 00:30:15]} {[%emt 00:00:05]} Nf6 {[%clk 00:30:04]} {[%emt
00:00:15]} 2. Bg5 {[%clk 00:29:58]} {[%emt 00:00:27]} e6 {[%clk 00:27:56]}
{[%emt 00:03:31]} 3. Bxf6 Qxf6 {[%clk 00:27:58]} 4. e3 {[%clk 00:29:32]} c5
{[%clk 00:26:49]} {[%emt 00:00:59]} 5. Nf3 {[%clk 00:28:56]} {[%emt 00:00:46]}
Nc6 {[%clk 00:26:01]} {[%emt 00:00:58]} 6. c3 {[%clk 00:28:50]} {[%emt
00:00:18]} a6 {[%clk 00:23:00]} {[%emt 00:03:11]} 7. Bd3 {[%clk 00:28:24]}
{[%emt 00:00:36]} Be7 {[%clk 00:22:00]} {[%emt 00:01:09]} 8. Nbd2 {[%clk
00:25:36]} {[%emt 00:02:58]} d5 {[%clk 00:21:11]} {[%emt 00:00:58]} 9. O-O
{[%clk 00:25:33]} {[%emt 00:00:14]} O-O {[%clk 00:20:53]} {[%emt 00:00:27]} 10.
Re1 {[%clk 00:24:50]} {[%emt 00:00:55]} Qh6 {[%clk 00:16:39]} {[%emt 00:04:21]}
11. e4 {[%clk 00:21:51]} {[%emt 00:03:11]} cxd4 {[%clk 00:15:21]} {[%emt
00:01:28]} 12. cxd4 {[%clk 00:21:01]} {[%emt 00:01:00]} Bb4 {[%clk 00:15:04]}
{[%emt 00:00:27]} 13. Re2 {[%clk 00:19:18]} {[%emt 00:01:54]} Bd7 {[%clk
00:14:18]} {[%emt 00:00:54]} 14. e5 {[%clk 00:18:42]} {[%emt 00:00:47]} f5
{[%clk 00:13:44]} {[%emt 00:00:42]} 15. exf6 {[%clk 00:17:35]} {[%emt
00:01:20]} Rxf6 {[%clk 00:13:29]} {[%emt 00:00:24]} 16. Re3 {[%clk 00:17:09]}
{[%emt 00:00:36]} Raf8 {[%clk 00:13:10]} {[%emt 00:00:28]} 17. Nb3 {[%clk
00:15:04]} {[%emt 00:02:16]} Bd6 {[%clk 00:12:59]} {[%emt 00:00:20]} 18. g3
{[%clk 00:14:46]} {[%emt 00:00:29]} g5 {[%clk 00:12:10]} {[%emt 00:00:57]} 19.
Qe2 {[%clk 00:14:18]} {[%emt 00:00:39]} Qh5 {[%clk 00:10:57]} {[%emt 00:01:20]}
20. Ne1 {[%clk 00:13:33]} {[%emt 00:00:58]} Qh3 {[%clk 00:10:25]} {[%emt
00:00:40]} 21. f3 {[%clk 00:12:55]} {[%emt 00:00:51]} Qh5 {[%clk 00:07:46]}
{[%emt 00:02:47]} 22. Qg2 {[%clk 00:12:19]} {[%emt 00:00:47]} e5 {[%clk
00:06:40]} {[%emt 00:01:16]} 23. g4 {[%clk 00:11:50]} {[%emt 00:00:39]} Qf7
{[%clk 00:06:35]} {[%emt 00:00:14]} 24. dxe5 {[%clk 00:11:35]} {[%emt
00:00:27]} Nxe5 {[%clk 00:06:30]} {[%emt 00:00:14]} 25. Be2 {[%clk 00:11:43]}
{[%emt 00:00:03]} Nc4 {[%clk 00:06:19]} {[%emt 00:00:19]} 26. Rc3 {[%clk
00:10:42]} {[%emt 00:01:12]} Bb4 {[%clk 00:05:44]} {[%emt 00:00:45]} 27. Nc2
{[%clk 00:08:12]} {[%emt 00:02:40]} Bxc3 {[%clk 00:04:52]} {[%emt 00:01:01]} 28.
bxc3 {[%clk 00:08:21]} {[%emt 00:00:02]} Ba4 {[%clk 00:04:08]} {[%emt
00:00:53]} 29. Nbd4 {[%clk 00:07:11]} {[%emt 00:00:35]} Bxc2 {[%clk 00:03:37]}
{[%emt 00:01:26]} 30. Nxc2 {[%clk 00:07:19]} {[%emt 00:00:03]} Qe6 {[%clk
00:03:19]} {[%emt 00:00:26]} 31. Kh1 {[%clk 00:04:23]} {[%emt 00:03:07]} Ne3
{[%clk 00:03:08]} {[%emt 00:00:20]} 32. Nxe3 {[%clk 00:04:30]} {[%emt
00:00:03]} Qxe3 {[%clk 00:03:16]} {[%emt 00:00:02]} 0-1

[Event "Vastgota Open 2022"]
[Site "Skara stadshotell, Jarnvagsgatan 5, Skara, Sweden"]
[Date "2022.10.29"]
[Round "1.6"]
[White "Johansson, Ulf"]
[Black "Jamtbo, Patrik"]
[Result "1-0"]
[TimeControl "30 minutes + 10 seconds per move from move one."]
[WhiteFideId "1701380"]
[BlackFideId "1718339"]
[WhiteElo "2183"]
[BlackElo "1729"]

1. Nf3 {[%clk 00:30:16]} {[%emt 00:00:02]} d5 {[%clk 00:30:14]} {[%emt
00:00:07]} 2. g3 {[%clk 00:30:18]} {[%emt 00:00:08]} Nf6 {[%clk 00:30:21]}
{[%emt 00:00:03]} 3. Bg2 {[%clk 00:30:23]} {[%emt 00:00:04]} g6 {[%clk
00:30:00]} {[%emt 00:00:31]} 4. b3 {[%clk 00:30:13]} {[%emt 00:00:21]} Bg7
{[%clk 00:30:08]} {[%emt 00:00:02]} 5. Bb2 {[%clk 00:30:18]} {[%emt 00:00:05]}
b6 {[%clk 00:30:14]} {[%emt 00:00:04]} 6. O-O {[%clk 00:30:12]} {[%emt
00:00:15]} Bb7 {[%clk 00:30:19]} {[%emt 00:00:06]} 7. d3 {[%clk 00:30:03]}
{[%emt 00:00:18]} O-O {[%clk 00:29:56]} {[%emt 00:02:05]} 8. Nbd2 {[%clk
00:30:11]} Re8 {[%clk 00:28:14]} {[%emt 00:00:23]} 9. Re1 {[%clk 00:30:18]}
{[%emt 00:00:04]} Nbd7 {[%clk 00:27:35]} {[%emt 00:00:48]} 10. c4 {[%clk
00:28:09]} {[%emt 00:02:18]} c6 {[%clk 00:27:02]} {[%emt 00:00:43]} 11. Rc1
{[%clk 00:26:32]} {[%emt 00:01:48]} Rc8 {[%clk 00:25:55]} {[%emt 00:01:17]} 12.
b4 {[%clk 00:24:46]} {[%emt 00:01:56]} e5 {[%clk 00:24:50]} {[%emt 00:01:14]}
13. cxd5 {[%clk 00:21:36]} {[%emt 00:03:21]} cxd5 {[%clk 00:24:35]} {[%emt
00:00:25]} 14. e4 {[%clk 00:21:24]} {[%emt 00:00:21]} Rxc1 {[%clk 00:21:29]}
{[%emt 00:03:16]} 15. Bxc1 {[%clk 00:21:29]} {[%emt 00:00:05]} dxe4 {[%clk
00:19:00]} {[%emt 00:02:39]} 16. dxe4 {[%clk 00:21:37]} {[%emt 00:00:02]} Qa8
{[%clk 00:18:05]} {[%emt 00:01:05]} 17. Nc4 {[%clk 00:17:19]} {[%emt 00:04:27]}
Nxe4 {[%clk 00:14:53]} {[%emt 00:03:22]} 18. Qxd7 {[%clk 00:14:04]} {[%emt
00:03:25]} Nf6 {[%clk 00:14:09]} {[%emt 00:00:54]} 19. Qd1 {[%clk 00:14:00]}
{[%emt 00:00:14]} e4 {[%clk 00:13:05]} {[%emt 00:01:15]} 20. Nfe5 {[%clk
00:12:36]} {[%emt 00:01:34]} b5 {[%clk 00:12:41]} {[%emt 00:00:34]} 21. Nxf7
{[%clk 00:10:00]} {[%emt 00:02:46]} bxc4 {[%clk 00:11:31]} {[%emt 00:01:20]} 22.
Ng5 {[%clk 00:09:59]} {[%emt 00:00:11]} h6 {[%clk 00:10:34]} {[%emt 00:01:06]}
23. Nh3 {[%clk 00:09:30]} {[%emt 00:00:39]} Qd8 {[%clk 00:08:08]} {[%emt
00:02:36]} 24. Qa4 {[%clk 00:08:33]} {[%emt 00:01:08]} Qb6 {[%clk 00:07:30]}
{[%emt 00:00:47]} 25. Be3 {[%clk 00:08:05]} {[%emt 00:00:38]} Qa6 {[%clk
00:07:21]} {[%emt 00:00:20]} 26. Qxa6 {[%clk 00:07:29]} {[%emt 00:00:46]} Bxa6
{[%clk 00:07:30]} {[%emt 00:00:01]} 27. Bxa7 {[%clk 00:07:26]} {[%emt
00:00:13]} c3 {[%clk 00:07:23]} {[%emt 00:00:17]} 28. a4 {[%clk 00:07:17]}
{[%emt 00:00:20]} Bd3 {[%clk 00:07:22]} {[%emt 00:00:10]} 29. Nf4 {[%clk
00:07:23]} {[%emt 00:00:04]} g5 {[%clk 00:07:19]} {[%emt 00:00:14]} 30. Ne2
{[%clk 00:07:13]} {[%emt 00:00:19]} Nd5 {[%clk 00:07:17]} {[%emt 00:00:12]} 31.
b5 {[%clk 00:06:47]} {[%emt 00:00:37]} Rc8 {[%clk 00:07:20]} {[%emt 00:00:07]}
32. b6 {[%clk 00:06:42]} {[%emt 00:00:15]} Ba6 {[%clk 00:07:17]} {[%emt
00:00:12]} 33. Bxe4 {[%clk 00:06:40]} {[%emt 00:00:12]} c2 {[%clk 00:07:14]}
{[%emt 00:00:14]} 34. Bxd5+ {[%clk 00:06:47]} {[%emt 00:00:02]} Kh7 {[%clk
00:07:23]} {[%emt 00:00:01]} 35. b7 {[%clk 00:06:33]} {[%emt 00:00:24]} Bxb7
{[%clk 00:07:28]} {[%emt 00:00:06]} 36. Bxb7 {[%clk 00:06:41]} {[%emt
00:00:01]} Rc7 {[%clk 00:07:33]} {[%emt 00:00:04]} 37. Be4+ {[%clk 00:06:49]}
{[%emt 00:00:01]} Kh8 {[%clk 00:07:41]} {[%emt 00:00:03]} 38. Be3 {[%clk
00:06:56]} {[%emt 00:00:03]} Bb2 {[%clk 00:07:40]} {[%emt 00:00:11]} 39. a5
{[%clk 00:06:52]} {[%emt 00:00:15]} Re7 {[%clk 00:07:12]} {[%emt 00:00:38]} 40.
Bxc2 {[%clk 00:06:57]} {[%emt 00:00:05]} Be5 {[%clk 00:06:38]} {[%emt
00:00:44]} 41. a6 {[%clk 00:07:03]} {[%emt 00:00:04]} Bb8 {[%clk 00:06:46]}
{[%emt 00:00:02]} 42. Ra1 {[%clk 00:06:55]} {[%emt 00:00:17]} Ba7 {[%clk
00:06:54]} {[%emt 00:00:03]} 43. Bxa7 {[%clk 00:07:02]} {[%emt 00:00:03]} Rxa7
{[%clk 00:07:03]} {[%emt 00:00:01]} 44. Nd4 {[%clk 00:07:06]} {[%emt 00:00:06]}
Kg7 {[%clk 00:07:10]} {[%emt 00:00:03]} 45. Nb5 {[%clk 00:07:14]} {[%emt
00:00:02]} Ra8 {[%clk 00:07:16]} {[%emt 00:00:04]} 46. a7 {[%clk 00:07:22]}
{[%emt 00:00:02]} Kf6 {[%clk 00:07:22]} {[%emt 00:00:04]} 47. Be4 {[%clk
00:07:30]} {[%emt 00:00:02]} Rxa7 {[%clk 00:07:13]} {[%emt 00:00:20]} 48. Rxa7
{[%clk 00:07:38]} {[%emt 00:00:03]} Ke5 {[%clk 00:07:21]} 49. f3 {[%clk
00:07:36]} {[%emt 00:00:12]} g4 {[%clk 00:07:27]} {[%emt 00:00:05]} 50. Rd7
{[%clk 00:07:28]} {[%emt 00:00:17]} h5 {[%clk 00:07:21]} {[%emt 00:00:16]} 51.
Rd5+ {[%clk 00:07:34]} {[%emt 00:00:04]} Kf6 {[%clk 00:07:29]} {[%emt
00:00:04]} 52. f4 {[%clk 00:07:39]} {[%emt 00:00:02]} Ke6 {[%clk 00:07:34]}
{[%emt 00:00:05]} 53. Nd4+ {[%clk 00:07:47]} {[%emt 00:00:02]} Kf6 {[%clk
00:07:42]} {[%emt 00:00:02]} 54. Ra5 {[%clk 00:07:40]} {[%emt 00:00:18]} Ke7
{[%clk 00:07:43]} {[%emt 00:00:10]} 55. Ra6 {[%clk 00:07:48]} {[%emt 00:00:02]}
Kf7 {[%clk 00:07:47]} {[%emt 00:00:05]} 56. Bg6+ {[%clk 00:07:49]} {[%emt
00:00:10]} Kg7 {[%clk 00:07:56]} {[%emt 00:00:02]} 57. Nf5+ {[%clk 00:07:51]}
{[%emt 00:00:06]} Kf8 {[%clk 00:07:59]} {[%emt 00:00:07]} 58. Ra7 {[%clk
00:07:56]} {[%emt 00:00:05]} 1-0